bitfinex/quotes_SOLUSD_20250123
["timestamp","ask_amount","ask_price","bid_price","bid_amount"]
[1737643059157,70.3084633,251.04,251.03,61.01755418]
[1737643059357,1.5993,251.24,251.08,1.0]
[1737643059571,6.2323,251.26,251.13,30.00877709]
[1737643059572,30.00877709,251.25,251.13,30.00877709]
[1737643059773,30.00877709,251.23,251.13,30.00877709]
[1737643059977,30.00877709,251.23,251.03,30.00877709]
[1737643059978,30.00877709,251.27,251.17,30.00877709]
[1737643060157,37.6004,251.37,251.08,2.0]
[1737643060158,30.00877709,251.31,251.19,30.00877709]
[1737643060360,30.00877709,251.35,251.23,30.00877709]
[1737643060562,30.00877709,251.35,251.15,30.00877709]
[1737643060563,20.0,251.24,251.15,30.00877709]
[1737643060777,30.00877709,251.29,251.17,30.00877709]
[1737643060998,30.00877709,251.33,251.21,30.00877709]
[1737643061182,31.00877709,251.4,251.23,30.00877709]
[1737643061183,30.00877709,251.35,251.23,30.00877709]
[1737643061851,30.00877709,251.33,251.21,30.00877709]
[1737643062387,19.35931499,251.37,251.26,30.00877709]
[1737643062564,30.00877709,251.36,251.26,30.00877709]
[1737643062764,30.00877709,251.34,251.22,30.00877709]
[1737643062970,30.00877709,251.32,251.2,30.00877709]
[1737643063273,49.94990121,251.36,251.24,30.00877709]
[1737643063473,7.6004,251.45,251.23,1.0]
[1737643063653,7.6004,251.45,251.16,30.00877709]
[1737643063654,37.60917709,251.45,251.33,30.00877709]
[1737643063853,30.00877709,251.43,251.31,30.00877709]
[1737643064559,30.00877709,251.41,251.3,30.00877709]
[1737643064982,30.00877709,251.45,251.32,30.00877709]
[1737643065266,30.00877709,251.51,251.39,30.00877709]
[1737643065565,36.20777709,251.53,251.41,30.00877709]
[1737643065763,30.00877709,251.49,251.37,30.00877709]
[1737643066089,30.00877709,251.51,251.39,30.00877709]
[1737643066261,30.00877709,251.59,251.47,30.00877709]
[1737643066461,30.00877709,251.63,251.51,30.00877709]
[1737643067063,3.973,251.7,251.43,2.0]
[1737643067064,30.00877709,251.65,251.53,30.00877709]
[1737643067579,30.00877709,251.65,251.38,6.5776]
[1737643067580,30.00877709,251.58,251.45,30.00877709]
[1737643067760,30.00877709,251.54,251.43,30.00877709]
[1737643067964,30.00877709,251.5,251.39,30.00877709]
[1737643068279,30.00877709,251.48,251.37,30.00877709]
[1737643068469,30.00877709,251.48,251.35,30.00877709]
[1737643068668,30.00877709,251.46,251.35,30.00877709]
[1737643068872,30.00877709,251.51,251.4,30.00877709]
[1737643069374,30.00877709,251.47,251.36,30.00877709]
[1737643069570,30.00877709,251.41,251.3,30.00877709]
[1737643069783,30.00877709,251.47,251.36,30.00877709]
[1737643069980,6.3092,251.54,251.29,1.0]
[1737643069981,25.0,251.45,251.37,30.00877709]
[1737643070187,25.0,251.45,251.39,30.00877709]
[1737643070362,25.0,251.45,251.41,30.00877709]
[1737643070563,25.0,251.45,251.41,0.10155438]
[1737643070872,25.0,251.45,251.44,30.00877709]
[1737643071266,0.3,251.67,251.47,20.0]
[1737643071467,0.3,251.67,251.63,30.00877709]
[1737643071980,0.3,251.67,251.61,30.00877709]
[1737643072159,0.3,251.67,251.65,30.00877709]
[1737643072365,0.3,251.67,251.63,30.00877709]
[1737643072563,0.3,251.67,251.66,30.00877709]
[1737643073269,0.3,251.67,251.64,30.00877709]
[1737643073524,0.3,251.67,251.66,30.00877709]
[1737643074487,30.00877709,251.88,251.66,30.00877709]
[1737643074488,30.00877709,251.94,251.69,6.1057]
[1737643074705,30.00877709,251.9,251.79,30.00877709]
[1737643075072,30.00877709,251.94,251.81,30.00877709]
[1737643075385,30.00877709,251.94,251.83,30.00877709]
[1737643075892,30.00877709,251.92,251.81,30.00877709]
[1737643076265,30.00877709,251.96,251.83,30.00877709]
[1737643076688,30.00877709,251.9,251.77,30.00877709]
[1737643076866,30.00877709,251.9,251.79,30.00877709]
[1737643077068,30.00877709,251.88,251.77,30.00877709]
[1737643077268,23.776884,251.87,251.77,30.00877709]
[1737643077475,23.776884,251.87,251.64,30.00877709]
[1737643077476,23.776884,251.83,251.73,30.00877709]
[1737643077797,1.0,251.85,251.74,30.00877709]
[1737643077993,30.00877709,251.95,251.82,30.00877709]
[1737643078507,30.00877709,251.93,251.82,30.00877709]
[1737643078796,52.94107709,252.0,251.82,30.00877709]
[1737643078797,30.00877709,251.94,251.82,30.00877709]
[1737643079286,30.00877709,251.96,251.84,30.00877709]
[1737643079867,30.00877709,251.96,251.86,30.00877709]
[1737643080100,17.964,252.0,251.76,30.00877709]
[1737643080101,30.00877709,251.88,251.76,30.00877709]
[1737643080271,30.00877709,251.9,251.78,30.00877709]
[1737643080595,20.0,251.87,251.76,30.00877709]
[1737643080792,30.00877709,251.82,251.7,30.00877709]
[1737643081094,30.00877709,251.8,251.68,30.00877709]
[1737643081294,30.00877709,251.76,251.64,30.00877709]
[1737643081601,30.00877709,251.8,251.68,30.00877709]
[1737643081898,30.00877709,251.84,251.72,0.11386096]
[1737643082067,30.00877709,251.89,251.76,30.00877709]
[1737643082398,30.00877709,251.89,251.78,30.00877709]
[1737643082580,30.00877709,251.93,251.8,30.00877709]
[1737643082765,30.00877709,251.93,251.82,30.00877709]
[1737643082971,30.00877709,251.95,251.84,30.00877709]
[1737643083174,17.964,252.0,251.79,1.0]
[1737643083175,30.00877709,251.89,251.79,1.0]
[1737643083371,30.00877709,251.89,251.78,30.00877709]
[1737643083598,23.776884,251.88,251.76,30.00877709]
[1737643083801,30.0,251.96,251.66,7.2283]
[1737643083802,23.776884,251.86,251.74,30.00877709]
[1737643084103,30.00877709,251.91,251.8,30.00877709]
[1737643084400,1.644,252.07,251.89,30.00877709]
[1737643084699,17.964,252.0,251.93,30.00877709]
[1737643085592,30.00877709,251.98,251.88,30.00877709]
[1737643085795,30.00877709,251.98,251.86,30.00877709]
[1737643086092,17.964,252.0,251.76,30.00877709]
[1737643086093,17.964,252.0,251.9,30.00877709]
[1737643086302,17.964,252.0,251.92,30.00877709]
[1737643086597,53.78566109,251.99,251.89,30.00877709]
[1737643086801,23.776884,251.99,251.91,30.00877709]
[1737643086979,17.964,252.0,251.91,30.00877709]
[1737643088007,17.964,252.0,251.93,30.00877709]
[1737643088300,17.964,252.0,251.91,30.00877709]
[1737643088541,47.97277709,252.0,251.89,30.00877709]
[1737643088697,30.00877709,251.98,251.87,30.00877709]
[1737643089006,30.00877709,251.9,251.79,30.00877709]
[1737643089181,30.00877709,251.88,251.77,30.00877709]
[1737643089379,30.00877709,251.9,251.81,30.00877709]
[1737643089603,30.00877709,251.92,251.83,30.00877709]
[1737643089903,23.776884,251.83,251.73,30.00877709]
[1737643090075,30.00877709,251.82,251.73,30.00877709]
[1737643090272,23.776884,251.83,251.73,30.00877709]
[1737643090481,30.00877709,251.94,251.81,30.00877709]
[1737643090703,30.00877709,251.87,251.76,30.00877709]
[1737643091209,30.00877709,251.89,251.78,30.00877709]
[1737643091388,30.00877709,251.95,251.85,30.00877709]
[1737643091701,30.00877709,251.95,251.76,30.00877709]
[1737643091702,30.00877709,251.93,251.83,30.00877709]
[1737643092014,30.00877709,251.95,251.85,30.00877709]
[1737643092324,30.00877709,251.99,251.87,30.00877709]
[1737643092524,17.75145349,252.0,251.77,2.0]
[1737643092525,17.75145349,252.0,251.91,30.00877709]
[1737643093186,30.00877709,251.97,251.87,30.00877709]
[1737643093386,17.75145349,252.0,251.85,30.00877709]
[1737643093620,30.00877709,251.99,251.87,30.00877709]
[1737643093799,23.776884,251.98,251.87,30.00877709]
[1737643093992,30.00877709,251.95,251.85,30.00877709]
[1737643094495,30.00877709,251.91,251.81,30.00877709]
[1737643094691,30.00877709,251.91,251.79,30.00877709]
[1737643094920,30.00877709,251.91,251.68,6.2712]
[1737643094921,30.00877709,251.86,251.77,30.00877709]
[1737643095100,23.776884,251.85,251.77,30.00877709]
[1737643095302,30.00877709,251.83,251.73,30.00877709]
[1737643095791,23.776884,251.8,251.71,30.00877709]
[1737643095997,30.00877709,251.81,251.71,30.00877709]
[1737643096513,27.9766,252.06,251.79,30.00877709]
[1737643096514,30.00877709,251.91,251.79,30.00877709]
[1737643096723,30.00877709,251.87,251.77,30.00877709]
[1737643096899,30.00877709,251.91,251.82,30.00877709]
[1737643097218,30.00877709,251.93,251.84,30.00877709]
[1737643097598,30.00877709,251.88,251.79,30.00877709]
[1737643097834,30.00877709,251.93,251.83,30.00877709]
[1737643098116,1.5716,251.97,251.91,30.00877709]
[1737643098320,17.75145349,252.0,251.91,30.00877709]
[1737643098494,17.75145349,252.0,251.97,30.00877709]
[1737643098693,17.75145349,252.0,251.99,30.00877709]
[1737643099095,17.75145349,252.0,251.93,30.00877709]
[1737643099298,17.75145349,252.0,251.95,30.00877709]
[1737643099517,17.75145349,252.0,251.93,30.00877709]
[1737643099722,23.776884,251.99,251.93,30.00877709]
[1737643099928,17.75145349,252.0,251.93,30.00877709]
[1737643100222,20.0,251.93,251.87,30.00877709]
[1737643100399,20.0,251.93,251.85,30.00877709]
[1737643100598,23.776884,251.92,251.83,30.00877709]
[1737643100805,23.776884,251.92,251.85,30.00877709]
[1737643100994,23.776884,251.92,251.87,30.00877709]
[1737643101194,23.776884,251.92,251.85,30.00877709]
[1737643101396,23.776884,251.92,251.87,30.00877709]
[1737643101611,23.776884,251.92,251.85,30.00877709]
[1737643101813,23.776884,251.94,251.87,30.00877709]
[1737643102326,23.776884,251.95,251.85,30.00877709]
[1737643102532,30.00877709,251.96,251.85,30.00877709]
[1737643102913,23.776884,251.95,251.85,30.00877709]
[1737643103412,30.00877709,251.91,251.81,30.00877709]
[1737643103614,23.776884,251.88,251.77,30.00877709]
[1737643103810,23.776884,251.88,251.68,0.063]
[1737643103811,30.00877709,251.8,251.69,30.00877709]
[1737643104016,20.0,251.82,251.73,30.00877709]
[1737643104324,50.00877709,251.82,251.73,30.00877709]
[1737643104521,23.776884,251.81,251.71,30.00877709]
[1737643104723,20.0,251.81,251.73,30.00877709]
[1737643104914,23.776884,251.76,251.68,0.063]
[1737643105325,30.00877709,251.75,251.68,0.063]
[1737643105701,30.00877709,251.73,251.68,0.063]
[1737643105901,30.00877709,251.75,251.68,0.063]
[1737643106102,13.8983,251.83,251.68,0.063]
[1737643106103,30.00877709,251.71,251.68,0.063]
[1737643106330,53.78566109,251.69,251.68,0.063]
[1737643106533,30.0,251.65,251.52,30.00877709]
[1737643106701,30.00877709,251.54,251.45,15.904911]
[1737643106902,28.08057463,251.54,251.44,30.00877709]
[1737643107101,30.00877709,251.55,251.44,30.00877709]
[1737643107324,30.00877709,251.64,251.4,30.00877709]
[1737643107325,30.00877709,251.51,251.4,30.00877709]
[1737643107634,30.00877709,251.64,251.4,30.00877709]
[1737643107635,30.00877709,251.49,251.4,30.00877709]
[1737643107934,23.776884,251.43,251.34,30.00877709]
[1737643108118,20.0,251.38,251.3,30.00877709]
[1737643108317,23.776884,251.31,251.21,15.919866]
[1737643108520,30.00877709,251.3,251.18,30.00877709]
[1737643108816,30.00877709,251.29,251.18,30.00877709]
[1737643109024,30.00877709,251.27,251.18,30.00877709]
[1737643109224,30.00877709,251.35,251.25,30.00877709]
[1737643109525,1.5638,251.45,251.31,30.00877709]
[1737643109526,30.00877709,251.42,251.31,30.00877709]
[1737643109834,30.00877709,251.42,251.19,1.0]
[1737643109835,23.776884,251.37,251.27,30.00877709]
[1737643110035,30.00877709,251.4,251.31,30.00877709]
[1737643110214,6.1014,251.47,251.33,30.00877709]
[1737643110215,30.00877709,251.44,251.33,30.00877709]
[1737643110417,30.00877709,251.48,251.37,30.00877709]
[1737643110616,30.00877709,251.48,251.28,30.00877709]
[1737643110617,30.00877709,251.52,251.41,30.00877709]
[1737643110825,30.00877709,251.54,251.3,1.0]
[1737643111061,30.00877709,251.58,251.47,30.00877709]
[1737643111512,6.6427,251.67,251.56,30.00877709]
[1737643111708,30.00877709,251.69,251.58,30.00877709]
[1737643112039,30.00877709,251.71,251.6,30.00877709]
[1737643112206,49.26829359,251.76,251.47,6.1967]
[1737643112405,19.86718496,251.68,251.58,30.00877709]
[1737643112637,32.21870222,251.61,251.54,30.00877709]
[1737643112808,32.21870222,251.61,251.52,30.00877709]
[1737643112809,62.22747931,251.61,251.52,30.00877709]
[1737643113012,32.21870222,251.61,251.54,30.00877709]
[1737643113234,32.21870222,251.61,251.46,1.0]
[1737643113235,32.21870222,251.61,251.56,30.00877709]
[1737643113709,32.21870222,251.61,251.6,30.00877709]
[1737643113911,1.0,251.74,251.6,30.00877709]
[1737643114110,20.0,251.73,251.64,30.00877709]
[1737643114326,19.26829359,251.76,251.66,30.00877709]
[1737643114529,19.30945483,251.77,251.68,30.00877709]
[1737643114725,19.62845714,251.83,251.73,30.00877709]
[1737643114920,19.58101247,251.87,251.64,30.00877709]
[1737643115137,19.58101247,251.87,251.67,20.0]
[1737643115321,19.91167581,251.9,251.8,5.64849735]
[1737643115640,6.5814,251.93,251.86,30.00877709]
[1737643115843,17.78145349,252.0,251.92,30.00877709]
[1737643116045,1.5439,252.05,251.95,30.00877709]
[1737643116340,36.10238522,252.08,251.97,30.00877709]
[1737643116518,30.00877709,252.0,251.89,30.00877709]
[1737643116715,30.00877709,251.97,251.84,30.00877709]
[1737643116923,31.0,251.96,251.68,1.0]
[1737643117124,30.00877709,251.85,251.75,30.00877709]
[1737643117325,30.00877709,251.83,251.72,30.00877709]
[1737643117841,30.00877709,251.86,251.73,30.00877709]
[1737643118445,23.776884,251.79,251.69,30.00877709]
[1737643118741,30.00877709,251.81,251.71,30.00877709]
[1737643118944,30.00877709,251.83,251.72,30.00877709]
[1737643119317,23.776884,251.82,251.72,30.00877709]
[1737643119531,30.00877709,251.89,251.76,30.00877709]
[1737643119719,30.00877709,251.93,251.82,30.00877709]
[1737643119935,30.00877709,251.95,251.82,30.00877709]
[1737643120644,30.00877709,251.91,251.8,33.98007709]
[1737643120942,23.776884,251.9,251.8,30.00877709]
[1737643121140,23.776884,251.9,251.78,3.9716]
[1737643121141,30.00877709,251.89,251.78,33.98037709]
[1737643121439,30.00877709,251.91,251.8,30.00877709]
[1737643121648,30.00877709,251.86,251.78,3.9716]
[1737643121848,30.00877709,251.88,251.78,3.9716]
[1737643122219,30.00877709,251.9,251.79,30.00877709]
[1737643122427,30.00877709,251.92,251.81,30.00877709]
[1737643122750,30.00877709,251.94,251.84,3.9707]
[1737643123048,30.00877709,251.99,251.88,30.00877709]
[1737643123339,30.00877709,252.01,251.9,30.00877709]
[1737643124120,30.00877709,252.05,251.92,30.00877709]
[1737643124320,30.00877709,252.05,251.94,30.00877709]
[1737643125148,30.00877709,252.05,251.91,13.8937]
[1737643125149,30.00877709,252.03,251.92,30.00877709]
[1737643125321,30.00877709,252.01,251.9,30.00877709]
[1737643125518,23.776884,252.0,251.9,30.00877709]
[1737643126019,23.776884,251.98,251.88,30.00877709]
[1737643126222,23.776884,251.98,251.88,33.97877709]
[1737643126632,23.776884,251.96,251.86,33.97907709]
[1737643126827,30.00877709,251.97,251.86,33.97907709]
[1737643127225,23.776884,251.94,251.84,30.00877709]
[1737643127424,23.776884,251.94,251.81,3.9712]
[1737643127425,23.776884,251.92,251.82,30.00877709]
[1737643128055,30.00877709,251.89,251.78,30.00877709]
[1737643128231,30.00877709,252.12,251.81,1.5965]
[1737643128428,30.00877709,252.14,252.02,30.00877709]
[1737643128623,30.03877709,252.16,252.02,30.00877709]
[1737643128823,30.00877709,252.12,252.0,30.00877709]
[1737643129024,0.03,252.16,251.94,1.0]
[1737643129258,0.03,252.16,252.06,30.00877709]
[1737643129442,0.03,252.16,252.1,30.00877709]
[1737643129752,23.776884,252.15,252.05,30.00877709]
[1737643129960,0.03,252.16,252.09,30.00877709]
[1737643130458,1.0,252.15,252.07,30.00877709]
[1737643130663,1.0,252.06,251.97,30.00877709]
[1737643130850,1.0,251.97,251.77,6.3791]
[1737643131031,20.0,251.93,251.89,30.00877709]
[1737643131229,1.0,251.97,251.89,30.00877709]
[1737643131564,30.00877709,252.11,251.96,30.00877709]
[1737643131758,32.00877709,252.09,251.97,30.00877709]
[1737643131960,20.0,252.06,251.99,30.00877709]
[1737643132141,43.776884,252.0,251.95,30.00877709]
[1737643132344,44.776884,252.0,251.93,30.00877709]
[1737643132661,31.0,252.1,251.98,30.00877709]
[1737643132843,30.00877709,252.11,252.0,30.00877709]
[1737643133040,1.0,252.07,251.97,30.00877709]
[1737643133228,0.74246155,252.11,252.0,30.00877709]
[1737643133651,30.00877709,252.09,251.98,30.00877709]
[1737643133864,30.00877709,252.09,251.96,30.00877709]
[1737643134039,23.776884,252.03,251.92,30.00877709]
[1737643134237,20.0,251.99,251.9,30.00877709]
[1737643134434,23.776884,251.98,251.88,30.00877709]
[1737643134742,23.776884,251.9,251.82,30.00877709]
[1737643135065,30.00877709,251.98,251.86,30.00877709]
[1737643135264,20.0,251.95,251.9,30.00877709]
[1737643135443,33.97667709,252.02,251.92,30.00877709]
[1737643135644,1.5372,252.03,251.94,30.00877709]
[1737643135840,1.5372,252.03,251.76,31.00877709]
[1737643135841,20.0,251.97,251.9,30.00877709]
[1737643136070,23.776884,251.92,251.86,30.00877709]
[1737643136440,43.776884,251.92,251.82,30.00877709]
[1737643136768,23.776884,251.85,251.73,30.00877709]
[1737643136949,20.0,251.83,251.73,30.00877709]
[1737643137158,20.0,251.83,251.64,30.00877709]
[1737643137159,20.0,251.79,251.7,30.00877709]
[1737643137464,1.5687,251.84,251.73,30.00877709]
[1737643137640,20.0,251.83,251.76,30.00877709]
[1737643137837,20.0,251.83,251.74,30.00877709]
[1737643138155,20.0,251.81,251.74,30.00877709]
[1737643138466,23.776884,251.76,251.66,30.00877709]
[1737643138965,23.776884,251.76,251.69,30.00877709]
[1737643139339,30.00877709,251.81,251.71,30.00877709]
[1737643139754,23.776884,251.77,251.71,30.00877709]
[1737643139954,23.776884,251.77,251.61,0.063]
[1737643139955,23.776884,251.77,251.69,30.00877709]
[1737643140149,23.776884,251.73,251.69,30.00877709]
[1737643140353,23.776884,251.73,251.65,30.00877709]
[1737643140549,20.0,251.7,251.63,30.00877709]
[1737643140742,20.0,251.66,251.61,0.063]
[1737643141162,6.6438,251.69,251.62,30.00877709]
[1737643141542,20.0,251.68,251.61,0.063]
[1737643141857,23.776884,251.65,251.55,30.00877709]
[1737643142243,23.776884,251.61,251.55,30.00877709]
[1737643142446,20.0,251.54,251.49,30.00877709]
[1737643142648,33.98307709,251.62,251.51,30.00877709]
[1737643142860,30.00877709,251.55,251.44,30.00877709]
[1737643143062,20.0,251.48,251.4,30.07177709]
[1737643143264,20.0,251.5,251.4,0.063]
[1737643143265,23.776884,251.43,251.4,0.063]
[1737643143661,30.00877709,251.54,251.41,30.00877709]
[1737643143858,30.00877709,251.56,251.45,30.00877709]
[1737643144060,30.00877709,251.56,251.4,0.063]
[1737643144061,20.0,251.51,251.43,30.00877709]
[1737643144260,20.0,251.43,251.4,0.063]
[1737643144469,23.776884,251.46,251.4,0.063]
[1737643144652,30.00877709,251.5,251.4,30.07177709]
[1737643144968,30.00877709,251.43,251.4,0.063]
[1737643145170,20.0,251.41,251.4,0.063]
[1737643145367,73.78566109,251.41,251.4,0.063]
[1737643145680,23.776884,251.41,251.4,0.063]
[1737643145968,0.74246155,251.49,251.4,30.07177709]
[1737643146167,30.75123864,251.49,251.4,0.063]
[1737643146372,23.776884,251.48,251.4,0.063]
[1737643146552,30.00877709,251.49,251.4,0.063]
[1737643146553,23.776884,251.43,251.4,0.063]
[1737643146752,30.00877709,251.51,251.4,30.07177709]
[1737643146954,1.6045,251.56,251.48,30.00877709]
[1737643147272,30.00877709,251.57,251.48,30.00877709]
[1737643147572,1.0,251.64,251.47,30.00877709]
[1737643147768,30.00877709,251.57,251.47,30.00877709]
[1737643147965,20.0,251.54,251.47,30.00877709]
[1737643148273,30.00877709,251.57,251.47,30.00877709]
[1737643148473,0.74246155,251.64,251.54,30.00877709]
[1737643148644,33.98277709,251.63,251.52,30.00877709]
[1737643148850,30.00877709,251.63,251.52,30.00877709]
[1737643149074,31.00877709,251.63,251.52,30.00877709]
[1737643149278,30.00877709,251.61,251.5,30.00877709]
[1737643149454,20.0,251.58,251.5,30.00877709]
[1737643149773,30.00877709,251.63,251.52,30.00877709]
[1737643150266,20.0,251.6,251.52,30.00877709]
[1737643150447,20.0,251.6,251.4,30.07177709]
[1737643150448,30.00877709,251.65,251.54,30.00877709]
[1737643150648,0.03,251.66,251.57,30.00877709]
[1737643150849,20.0,251.62,251.53,30.00877709]
[1737643151049,20.0,251.55,251.47,30.00877709]
[1737643151249,1.0,251.63,251.43,30.00877709]
[1737643151250,20.0,251.51,251.43,30.00877709]
[1737643151477,23.776884,251.5,251.41,30.00877709]
[1737643151852,23.776884,251.46,251.4,0.063]
[1737643152056,30.00877709,251.45,251.4,0.063]
[1737643152362,73.78566109,251.41,251.4,0.063]
[1737643152562,43.776884,251.41,251.4,0.063]
[1737643152873,30.00877709,251.49,251.4,0.063]
[1737643153071,30.00877709,251.51,251.42,30.00877709]
[1737643153273,30.00877709,251.53,251.42,30.00877709]
[1737643153581,50.00877709,251.48,251.4,0.063]
[1737643153873,23.776884,251.43,251.4,0.063]
[1737643154075,30.0,251.5,251.4,30.07177709]
[1737643154076,30.00877709,251.5,251.4,30.07177709]
[1737643154287,33.98397709,251.56,251.44,30.00877709]
[1737643154472,1.5669,251.58,251.4,0.063]
[1737643154473,1.5669,251.58,251.5,30.00877709]
[1737643154781,30.00877709,251.63,251.52,30.00877709]
[1737643154957,30.00877709,251.65,251.54,30.00877709]
[1737643155150,0.03,251.66,251.62,30.00877709]
[1737643155575,0.03,251.66,251.64,30.00877709]
[1737643156291,34.01237709,251.66,251.54,30.00877709]
[1737643156492,20.0,251.61,251.52,30.00877709]
[1737643156776,30.03877709,251.66,251.56,30.00877709]
[1737643156985,30.00877709,251.64,251.52,30.00877709]
[1737643157283,23.776884,251.6,251.52,30.00877709]
[1737643157478,23.776884,251.6,251.55,30.00877709]
[1737643157683,30.00877709,251.56,251.45,30.00877709]
[1737643157981,30.00877709,251.51,251.4,0.063]
[1737643158187,30.00877709,251.43,251.4,0.063]
[1737643158361,31.0,251.46,251.4,0.063]
[1737643158560,1.0,251.41,251.26,30.00877709]
[1737643158770,20.0,251.32,251.24,30.00877709]
[1737643158991,20.0,251.28,251.2,30.00877709]
[1737643159195,23.776884,251.24,251.14,30.07177709]
[1737643159484,30.00877709,251.26,251.14,0.063]
[1737643159485,20.0,251.15,251.14,0.063]
[1737643159686,50.00877709,251.15,251.14,0.063]
[1737643159863,30.00877709,251.17,251.14,0.063]
[1737643160390,20.0,251.21,251.14,0.063]
[1737643160568,30.00877709,251.17,251.14,0.063]
[1737643160959,30.00877709,251.15,251.04,0.063]
[1737643161160,30.00877709,251.14,251.04,0.063]
[1737643161361,30.00877709,251.18,251.08,30.00877709]
[1737643161689,20.0,251.09,251.04,0.063]
[1737643161866,30.0,251.31,251.04,0.063]
[1737643162074,30.0,251.22,251.04,0.063]
[1737643162383,20.0,251.15,251.04,0.063]
[1737643162563,9.9494,251.27,251.04,0.063]
[1737643162564,30.0,251.17,251.04,0.063]
[1737643162889,23.776884,251.04,250.88,30.00877709]
[1737643163063,23.776884,250.93,250.84,30.00877709]
[1737643163487,30.00877709,251.05,250.84,30.00877709]
[1737643163488,23.776884,250.95,250.84,30.00877709]
[1737643163784,30.00877709,250.94,250.82,30.07177709]
[1737643164089,30.00877709,250.88,250.82,0.063]
[1737643164287,23.776884,250.83,250.82,0.063]
[1737643164789,20.0,250.8,250.78,0.063]
[1737643164988,20.0,250.76,250.6,30.00877709]
[1737643165171,30.00877709,250.72,250.62,30.00877709]
[1737643165379,23.776884,250.64,250.56,0.063]
[1737643165991,23.776884,250.62,250.56,0.063]
[1737643166567,30.00877709,250.61,250.56,0.063]
[1737643166895,73.78566109,250.57,250.56,0.063]
[1737643167068,33.9902,250.61,250.56,0.063]
[1737643167069,30.00877709,250.59,250.56,0.063]
[1737643167468,23.776884,250.58,250.56,0.063]
[1737643167668,23.776884,250.57,250.56,0.063]
[1737643167884,30.00877709,250.65,250.56,0.063]
[1737643168196,30.00877709,250.71,250.6,30.00877709]
[1737643168367,30.00877709,250.67,250.56,30.07177709]
[1737643168883,30.00877709,250.76,250.65,30.00877709]
[1737643169085,30.00877709,250.8,250.69,16.14162195]
[1737643169263,30.00877709,250.8,250.56,34.06267709]
[1737643169264,30.00877709,250.78,250.67,30.00877709]
[1737643169469,30.00877709,250.76,250.65,30.00877709]
[1737643169684,30.00877709,250.76,250.65,10.60666091]
[1737643169883,30.0,250.79,250.56,35.06267709]
[1737643170082,30.0,250.79,250.64,30.00877709]
[1737643170083,30.00877709,250.75,250.64,30.00877709]
[1737643170277,30.00877709,250.71,250.6,30.00877709]
[1737643170475,23.776884,250.66,250.56,30.07177709]
[1737643170907,30.00877709,250.73,250.62,30.00877709]
[1737643171095,30.00877709,250.77,250.66,30.00877709]
[1737643171281,30.00877709,250.77,250.66,2.28923928]
[1737643171588,30.00877709,250.82,250.71,30.00877709]
[1737643171795,30.00877709,250.76,250.65,30.00877709]
[1737643172093,23.776884,250.69,250.61,30.00877709]
[1737643172291,23.776884,250.69,250.59,30.00877709]
[1737643173078,23.776884,250.69,250.66,0.063]
[1737643173402,30.00877709,250.68,250.66,0.063]
[1737643173572,23.776884,250.67,250.56,0.063]
[1737643173904,23.776884,250.6,250.56,0.063]
[1737643174103,30.00877709,250.57,250.56,0.063]
[1737643174283,23.776884,250.57,250.56,0.063]
[1737643174970,53.78566109,250.57,250.56,0.063]
[1737643175378,20.0,250.54,250.39,30.00877709]
[1737643175586,30.00877709,250.51,250.41,30.00877709]
[1737643175790,30.00877709,250.51,250.39,30.00877709]
[1737643175997,23.776884,250.48,250.37,30.00877709]
[1737643176199,30.00877709,250.45,250.35,30.00877709]
[1737643176385,23.776884,250.42,250.31,30.00877709]
[1737643176589,30.00877709,250.41,250.31,30.00877709]
[1737643176773,30.00877709,250.47,250.37,30.00877709]
[1737643176980,30.00877709,250.43,250.32,30.00877709]
[1737643177182,23.776884,250.42,250.32,30.00877709]
[1737643177378,53.78566109,250.41,250.28,30.00877709]
[1737643178396,53.78566109,250.41,250.32,30.00877709]
[1737643178901,23.776884,250.41,250.32,30.00877709]
[1737643179098,30.00877709,250.52,250.39,30.00877709]
[1737643179298,30.00877709,250.58,250.46,30.00877709]
[1737643179476,30.00877709,250.61,250.5,30.00877709]
[1737643179679,30.00877709,250.53,250.42,30.00877709]
[1737643179873,20.0,250.5,250.4,30.07177709]
[1737643180078,20.0,250.48,250.4,30.07177709]
[1737643180275,30.00877709,250.53,250.42,30.00877709]
[1737643180502,30.00877709,250.56,250.46,30.00877709]
[1737643180893,30.00877709,250.68,250.48,30.00877709]
[1737643180894,30.00877709,250.58,250.48,30.00877709]
[1737643181098,30.00877709,250.53,250.42,30.00877709]